Cogmind - Beta 16 --- EXPLORER MODE // 2025.12.05 @ 11:22:10 Player: rootmos Result: Destroyed by Warlord with Improved Arc Thrower Performance ------------- Evolutions (5) 2500 Regions Visited (10) 2000 Robots Destroyed (164) 820 Value Destroyed (7310) 7310 Prototype IDs (13) 260 Alien Tech Used (0) 0 Bonus (377) 377 TOTAL SCORE: 13267 Bonus ------- Follower Combat Kills 102 Registered with UFD 300 Met Optimus in HQ 500 Met Warlord at Base 500 MAIN.C Attacked Warlord 500 Friendly Fire -1525 Cogmind --------- Core Integrity 0/1000 Matter 265/300 Energy 100/100 System Corruption 5% Temperature Cool (0) Movement Core (700) Ox13 Location -5/Warlord Parts ------- > --- POWER (2) -------- (None) > --- PROPULSION (4) --- (None) > --- UTILITY (8) ------ High-capacity Storage Unit > --- WEAPON (4) ------- (None) > --- INVENTORY (20) --- Reinforced Deuterium Engine Angular Momentum Engine Light Angular Momentum Engine Fission Core Improved Cooling System Coolant Injector Matter Compressor (250) Machine Analyzer IFF Parser Advanced Terrain Scan Processor Vortex Rail (40) Peak State ------------ > --- POWER ------------ Light Fission Core Cold Fusion Reactor > --- PROPULSION ------- Improved Medium Treads Carbon-fiber Leg Carbon-fiber Leg Flexi-carbon Leg > --- UTILITY ---------- Improved Heat Sink Advanced Heat Sink High-capacity Storage Unit Energy Well Weight Redist. System Enhanced Optical Array Advanced Sensor Array Point Defense System > --- WEAPON ----------- Vortex Rail Magnetic Acceleration Cannon Vortex Catalyst Activator > --- INVENTORY -------- Reinforced Deuterium Engine Angular Momentum Engine Light Angular Momentum Engine Fission Core Light Fission Core Cold Fusion Reactor Improved Cooling System Coolant Injector Matter Compressor Machine Analyzer IFF Parser Advanced Terrain Scan Processor Improved Target Analyzer Improved Particle Charger Transmission Jammer Improved Light Armor Plating Wave Gun Phase Cannon Heavy Plasma Cannon Coil Gun [Rating: 100] Favorites ----------- Power Light Angular Momentum Engine Engine Light Angular Momentum Engine Power Core Light Fission Core Reactor Cold Fusion Reactor Propulsion Carbon-fiber Leg Treads Improved Medium Treads Leg Carbon-fiber Leg Wheel Compact Wheel Utility Improved Heat Sink Device Improved Heat Sink Storage High-capacity Storage Unit Processor Advanced Targeting Computer Protection Improved Light Armor Plating Weapon Coil Gun Energy Gun Wave Gun Energy Cannon Proton Cannon Ballistic Gun Coil Gun Ballistic Cannon Magnetic Acceleration Cannon Launcher Vortex Catalyst Activator Special Weapon RU-N14's Throwing Claymores v3 Build | -11 -10 -10 -10 -9 -9 -6 -5 -5 -5 -5 ------- Run | Yrd Mat Min Sub Rec Scr Fac Fac Upp Upp War Slots Evolved 11 | . 1 . . . . 8 2 . . . Power 1 | . . . . . . 1 . . . . Propulsion 2 | . . . . . . 1 1 . . . Utility 6 | . 1 . . . . 4 1 . . . Weapon 2 | . . . . . . 2 . . . . Parts Attached 144 | 1 11 3 4 10 9 80 6 8 5 7 Power 23 | . 2 . 1 1 . 14 . 2 1 2 Engine 13 | . 1 . 1 1 . 8 . 2 . . Core 8 | . 1 . . . . 5 . . 1 1 Reactor 2 | . . . . . . 1 . . . 1 Propulsion 31 | . 1 1 . 3 3 16 2 3 2 . Treads 7 | . . . . . . 4 2 . 1 . Leg 23 | . 1 1 . 2 3 12 . 3 1 . Wheel 1 | . . . . 1 . . . . . . Hover . | . . . . . . . . . . . Flight . | . . . . . . . . . . . Utility 47 | . 5 2 1 2 3 28 3 1 . 2 Device 27 | . 2 2 1 . 1 16 3 1 . 1 Storage 4 | . 2 . . . 1 1 . . . . Processor 7 | . . . . . 1 5 . . . 1 Hackware . | . . . . . . . . . . . Protection 9 | . 1 . . 2 . 6 . . . . Artifact . | . . . . . . . . . . . Weapon 43 | 1 3 . 2 4 3 22 1 2 2 3 Energy Gun 11 | . . . 1 2 . 6 . 1 . 1 Energy Cannon 11 | . 1 . . 1 2 4 1 1 1 . Ballistic Gun 9 | 1 2 . 1 1 . 4 . . . . Ballistic Cannon 10 | . . . . . 1 8 . . 1 . Launcher 1 | . . . . . . . . . . 1 Special Weapon 1 | . . . . . . . . . . 1 Impact Weapon . | . . . . . . . . . . . Slashing Weapon . | . . . . . . . . . . . Piercing Weapon . | . . . . . . . . . . . Special Melee Weapon . | . . . . . . . . . . . Unidentified Prototypes 7 | . . 1 . . . 3 . . . 3 Parts Lost 48 | . . . 3 6 . 10 3 7 . 19 Power 7 | . . . . 1 . 2 . . . 4 Propulsion 10 | . . . 1 1 . 1 1 3 . 3 Utility 15 | . . . 1 1 . 4 1 1 . 7 Weapon 16 | . . . 1 3 . 3 1 3 . 5 Highest Loss Streak 19 | . . . 3 6 . 4 2 4 . 19 To Critical Strikes 6 | . . . 2 . . . . . . 4 Average Backups 16 | 7 9 10 9 8 14 18 19 19 17 19 Power 2 | 1 1 2 2 1 1 1 4 6 7 6 Propulsion . | 2 . . . . . 1 . . . . Utility 6 | 3 5 6 5 4 3 7 11 10 10 10 Weapon 5 | 1 1 2 1 3 8 8 3 2 . 2 Tool/Special . | . . . . . . . . . . . Unused Backups 44 | . 9 . . 1 3 14 1 . 3 13 Power 12 | . 1 . . . 2 4 . . 1 4 Propulsion 6 | . 4 . . 1 . 1 . . . . Utility 18 | . 3 . . . . 4 1 . 2 8 Weapon 8 | . 1 . . . 1 5 . . . 1 Tool/Special . | . . . . . . . . . . . Average Slot Usage (%) 95 | . 99 100 96 88 76 98 96 96 100 95 Engine 5 | . 12 12 12 1 . 6 5 5 4 . Core 5 | . . . . 10 12 5 . . . 4 Reactor 1 | . . . . . . . 5 5 5 4 Treads 3 | . . . . . . 2 18 18 5 4 Leg 16 | . 25 25 21 14 25 15 1 1 16 15 Device 18 | . 12 17 25 13 12 18 15 22 27 26 Storage 10 | . 12 12 12 12 12 9 11 11 11 10 Processor 5 | . . . . . 3 8 15 10 5 5 Protection 5 | . 12 6 . 10 8 5 . . . . Energy Gun 2 | . 1 . . . . 4 . 4 5 4 Energy Cannon 5 | . 6 12 8 9 . 4 11 5 5 2 Ballistic Gun 6 | . 16 12 15 13 . 5 5 4 9 2 Ballistic Cannon 4 | . . . . . . 9 5 4 1 4 Peak Build Rating 100 | 7 11 20 20 19 33 79 87 84 88 100 Average Rating 53 | 7 9 14 16 16 20 70 81 80 83 90 On Entrance 39 | 7 7 10 20 11 19 29 76 83 82 88 Avg Prop Armor Cover (%) 5 | . . . . . 11 3 3 6 5 5 Naked Turns . | . . . . . . . . . . . Heaviest Build 106 | 18 23 23 21 27 63 104 102 102 98 106 Greatest Support 109 | 20 20 20 20 20 42 70 109 109 56 56 Greatest Overweight (x) 20 | . 1 7 1 8 20 4 1 4 1 6 Average Overweight (x) 1 | . . 1 . 2 1 1 . . 1 1 Largest Inventory Capacity 20 | 10 15 10 10 10 20 20 20 20 20 20 Average Capacity 17 | 10 10 10 10 10 16 20 20 20 20 20 Most Carried 20 | 7 10 10 10 10 19 20 20 20 20 20 Average Carried 16 | 7 9 10 9 8 15 18 19 19 17 19 Final Capacity 20 | 10 10 10 10 10 20 20 20 20 20 20 Final Carried 20 | 7 10 10 8 10 19 20 20 17 20 11 Scrap Suit Usage (%) 1 | . . . . . . 1 . . . . Class Distribution -------------------- 19% | Hacker-Mutant 18% | Scavenger-Skirmisher 18% | Hacker-Skirmisher 16% | Commander-Mutant 9% | Scavenger-Gunner 9% | Hacker-Gunner 5% | Hacker-Tank Dominant Class ---------------- Hacker-Mutant | -10/Materials Hacker-Mutant | -10/Mines Hacker-Mutant | -10/Subcaves Commander-Mutant | -9/Recycling Commander-Mutant | -9/Scraptown Hacker-Skirmisher | -6/Factory Hacker-Skirmisher | -5/Factory Hacker-Skirmisher | -5/Upper Caves Scavenger-Skirmisher | -5/Upper Caves Scavenger-Skirmisher | -5/Warlord Resources | -11 -10 -10 -10 -9 -9 -6 -5 -5 -5 -5 ----------- Run | Yrd Mat Min Sub Rec Scr Fac Fac Upp Upp War Matter Collected 5246 | 200 207 142 108 199 206 3380 197 403 130 74 Remotely . | . . . . . . . . . . . Salvage Created 7676 | . 304 200 316 775 262 4220 538 719 342 . Parts 333 | . 24 12 14 23 9 187 24 20 20 . Haulers Intercepted 1 | . . . . 1 . . . . . . Recyclers Shooed 3 | . . . . . . 3 . . . . Parts Field Recycled . | . . . . . . . . . . . Retrieved Matter . | . . . . . . . . . . . Parts Self-Destructed . | . . . . . . . . . . . Prevented . | . . . . . . . . . . . Parts Restored . | . . . . . . . . . . . Kills | -11 -10 -10 -10 -9 -9 -6 -5 -5 -5 -5 ------- Run | Yrd Mat Min Sub Rec Scr Fac Fac Upp Upp War Combat Hostiles Destroyed 137 | . 9 4 8 7 5 75 11 15 3 . Guns 52 | . 7 1 5 6 . 27 1 3 2 . Cannons 75 | . 2 2 2 . 5 44 8 11 1 . AOE 4 | . . . . . . 3 1 . . . Classes Destroyed 19 | . 3 2 2 7 2 3 . . . . Worker 9 | . 1 . . . . 7 1 . . . Builder 6 | . . 1 . . . 4 1 . . . Tunneler 1 | . . 1 . . . . . . . . Hauler 1 | . . . . 1 . . . . . . Recycler 4 | . . . . 3 . 1 . . . . Operator 1 | . . . . . . 1 . . . . Turret 2 | . . . 2 . . . . . . . Watcher 3 | . . . . . . 3 . . . . Swarmer 15 | . 4 . 4 . . . 3 4 . . Grunt 63 | . 5 4 . . . 44 4 6 . . Brawler 3 | . . . . 1 . 1 1 . . . Duelist 7 | . . . . 1 . 3 1 2 . . Sentry 10 | . . . . 3 . 6 . 1 . . Hunter 7 | . . . . 1 . 2 . 2 2 . Programmer 21 | . . . . 1 . 18 2 . . . Behemoth 2 | . . . . . . 1 . . 1 . Subdweller 4 | . . . 4 . . . . . . . Explorer 3 | . . . . . 3 . . . . . Scrapper 2 | . . . . . 2 . . . . . Decomposer 1 | . . . . . . . . 1 . . Best Kill Streak 6 | . 2 2 4 6 2 6 5 5 2 . Combat Bots Only 5 | . 2 2 4 4 2 4 4 5 2 . Max Kills in Single Turn 3 | . 1 2 1 3 1 3 2 1 1 . Gunslinging . | . . . . . . . . . . . Exploded 1 | . . . . . . 1 1 . . . Melee . | . . . . . . . . . . . Uniques/NPCs Destroyed . | . . . . . . . . . . . Combat | -11 -10 -10 -10 -9 -9 -6 -5 -5 -5 -5 -------- Run | Yrd Mat Min Sub Rec Scr Fac Fac Upp Upp War Hostile Shots Fired 1152 | . 37 24 92 78 26 502 50 86 45 212 Missed 349 | . 10 2 29 21 4 180 12 14 17 60 Hits 803 | . 27 22 63 57 22 322 38 72 28 152 Melee 49 | . . . . 6 . 3 4 5 . 31 Projectile 754 | . 27 22 63 51 22 319 34 67 28 121 AOE 2 | . . . . 1 . 1 . . . . Critical Strikes 47 | . . 1 3 5 . 9 . 4 . 25 Part Disruptions 6 | . . . . . . 1 . . . 5 Damage Taken 9004 | . 197 170 381 568 144 3618 510 756 162 2498 Core 1953 | . 36 7 56 117 20 717 25 91 18 866 Absorbed by Shields 188 | . . . . 15 11 162 . . . . Redirected to Shielding 5 | . . . . 5 . . . . . . Ignored by Resistances 5464 | . 126 102 258 346 100 2022 308 607 202 1393 Regen/Repaired (Parts) 357 | . . . . . . 129 . . . 228 Core Remaining (%) 40 | 100 . . . . 5 15 . . . . Volleys Fired 335 | . 28 15 22 27 9 158 18 38 9 11 Largest 4 | . 2 2 2 2 2 4 4 4 4 4 Hottest 290 | . 80 83 83 96 120 239 239 290 245 250 Shots Fired 1027 | . 56 30 39 39 17 593 72 116 36 29 Gun 474 | . 53 15 19 33 . 246 18 57 23 10 Cannon 549 | . 3 15 20 6 17 347 54 59 13 15 Launcher 4 | . . . . . . . . . . 4 Special . | . . . . . . . . . . . Kinetic 590 | . 53 15 19 23 9 359 36 50 18 8 Thermal 220 | . 3 15 20 6 8 64 18 59 18 9 Explosive . | . . . . . . . . . . . Electromagnetic 205 | . . . . 10 . 170 18 7 . . Entropic 12 | . . . . . . . . . . 12 Robot Hit Streak 69 | . 11 16 15 26 12 69 18 22 35 17 Robot Miss Streak 4 | . 3 1 2 1 1 4 1 1 3 1 Penetration Max 1 | . . . . . . 1 . . . . Secondary Targets 3 | . 1 . 1 1 . . . . . . Max Gunslinging Chain 1 | . 1 . 1 1 . . . . . . Shots Hit Robots 778 | . 41 25 32 33 15 448 49 89 28 18 Core Hits 330 | . 20 10 15 15 6 201 18 25 10 10 Critical Kills 10 | . . 1 2 . . 6 1 . . . Critical Parts Destroyed 13 | . 1 . . 1 . 8 2 . . 1 Critical Strikes 43 | . 1 1 2 1 . 31 3 3 . 1 Burn 7 | . . . . . . 5 . 2 . . Meltdown 4 | . . 1 1 . . 1 1 . . . Destroy 22 | . 1 . 1 1 . 17 2 . . . Blast 6 | . . . . . . 5 . 1 . . Corrupt 3 | . . . . . . 3 . . . . Detonate 1 | . . . . . . . . . . 1 Melee Attacks . | . . . . . . . . . . . Impact . | . . . . . . . . . . . Slashing . | . . . . . . . . . . . Piercing . | . . . . . . . . . . . Sneak Attacks . | . . . . . . . . . . . Combat Hostiles . | . . . . . . . . . . . Follow-up Attacks . | . . . . . . . . . . . Damage Inflicted 20787 | . 451 441 506 789 378 12507 1498 2343 604 1270 Guns 6735 | . 403 197 207 475 . 3624 225 1005 371 228 Cannons 12137 | . 35 244 299 104 378 8080 1130 1331 233 303 Explosions 1852 | . . . . 206 . 775 143 . . 728 Melee . | . . . . . . . . . . . Ramming 63 | . 13 . . 4 . 28 . 7 . 11 Kinetic 9804 | . 403 197 207 343 223 6692 504 875 261 99 Thermal 5052 | . 35 244 299 310 155 1512 572 1268 343 314 Explosive 442 | . . . . . . 442 . . . . Electromagnetic 4580 | . . . . 132 . 3833 422 193 . . Impact . | . . . . . . . . . . . Slashing . | . . . . . . . . . . . Piercing . | . . . . . . . . . . . Entropic 846 | . . . . . . . . . . 846 Highest Corruption 5 | . . . . 1 1 4 2 2 2 5 Average Corruption 1 | . . . . 1 1 1 1 2 2 2 Corruption Purged 4 | . . . . . . 4 . . . . Corruption Blocked . | . . . . . . . . . . . Effects 95 | . . . . 10 11 42 1 15 15 1 Message Errors 24 | . . . . 3 4 11 . 2 4 . Matter Fused 16 | . . . . 1 2 9 . 2 2 . Heat Flow Errors 13 | . . . . 1 . 8 . 1 3 . Energy Discharges 9 | . . . . 1 1 3 . 2 1 1 Parts Rejected 2 | . . . . 1 . 1 . . . . Parts Fused 2 | . . . . . 1 1 . . . . Data Loss (minor) 11 | . . . . 3 2 3 . 1 2 . Data Loss (major) 4 | . . . . . . 1 . 1 2 . Misfires 5 | . . . . . . 2 . 3 . . Alerts 5 | . . . . . 1 1 1 1 1 . Weapon Failures 4 | . . . . . . 2 . 2 . . Overload Shots . | . . . . . . . . . . . Overflow Damage 348 | . . . . 19 6 249 36 35 3 . Projectiles 290 | . . . . . 6 210 36 35 3 . Explosions 58 | . . . . 19 . 39 . . . . Melee . | . . . . . . . . . . . Knockbacks 60 | . . . . . . 50 4 5 . 1 Impact 1 | . . . . . . . . . . 1 Kinetic 55 | . . . . . . 46 4 5 . . Secondary 4 | . . . . . . 4 . . . . Self-Inflicted Damage 420 | . . . . 1 . 263 22 . . 134 Shots 8 | . . . . . . 6 1 . . 1 Rammed 8 | . . . . 4 . 2 . 1 . 1 Targets Rammed 13 | . 1 . . 4 . 5 . 1 . 2 Kicked 5 | . 1 . . . . 3 . . . 1 Crushed . | . . . . . . . . . . . Highest Temperature 699 | . 54 363 . 87 192 699 393 539 304 144 Average Temperature 173 | . 16 160 . 21 63 181 138 272 135 69 Received Heat Transfer 2553 | . 135 174 276 179 82 1233 144 318 12 . Effects 113 | . . . . . . 81 1 31 . . Shutdowns 37 | . . . . . . 31 . 6 . . Energy Bleed 16 | . . . . . . 11 1 4 . . Interference 22 | . . . . . . 11 . 11 . . Matter Decay 4 | . . . . . . 3 . 1 . . Short Circuit 10 | . . . . . . 10 . . . . Damage (minor) 6 | . . . . . . 3 . 3 . . Damage (major) 15 | . . . . . . 9 . 6 . . Damage (core) 3 | . . . . . . 3 . . . . Siege Activations . | . . . . . . . . . . . Martial Activations . | . . . . . . . . . . . Shielding Activations . | . . . . . . . . . . . Robots Disrupted . | . . . . . . . . . . . Combat Hostiles . | . . . . . . . . . . . Robots Corrupted 3 | . . . . 1 . . . 2 . . Combat Hostiles 2 | . . . . 1 . . . 1 . . Parts Fried 9 | . . . . 1 . 4 1 3 . . Impact Corruptions 1 | . . . . . . . . 1 . . Robots Melted 4 | . . 1 1 . . 1 1 . . . Combat Hostiles 4 | . . 1 1 . . 1 1 . . . Parts Melted 14 | . . 4 2 . 2 2 2 2 . . Heat Transferred 7936 | . 74 518 629 435 261 2578 700 2006 457 278 Parts Sabotaged 2 | . . . . . . 2 . . . . Parts Stolen . | . . . . . . . . . . . Parts Stripped . | . . . . . . . . . . . Power Chain Reactions 6 | . . . . 1 . 4 1 . . . Alert | -11 -10 -10 -10 -9 -9 -6 -5 -5 -5 -5 ------- Run | Yrd Mat Min Sub Rec Scr Fac Fac Upp Upp War Maximum Alert Level 1 | . . . . . . 1 . . . . Low Security (%) 99 | 100 100 100 . 100 . 98 100 . . . Level 1 . | . . . . . . 1 . . . . Level 2 . | . . . . . . . . . . . Level 3 . | . . . . . . . . . . . Level 4 . | . . . . . . . . . . . Level 5 . | . . . . . . . . . . . High Security . | . . . . . . . . . . . Max Security . | . . . . . . . . . . . Peak Influence 227 | . 50 50 . 58 . 227 141 . . . Initial . | . . . . . . . . . . . Average 18 | . 5 2 . 3 . 23 35 . . . Influence Increases 4151 | . 237 110 150 229 . 2689 326 320 90 . Destroy 0b10 Robot/C 2640 | . 180 80 120 180 . 1500 220 300 60 . Destroy 0b10 Robot/NC 145 | . 5 10 . 30 . 80 10 . 10 . Destroy Leader 556 | . 40 20 . . . 426 30 20 20 . Successful Hack 98 | . 12 . . . . 65 21 . . . Disable Machine 72 | . . . . . . 68 4 . . . Anti-Garrison Action 300 | . . . . . . 300 . . . . Destroy Structure 205 | . . . . 4 . 175 26 . . . Lose Combat Pursuer 135 | . . . 30 15 . 75 15 . . . Influence Decreases 4151 | . 237 110 150 229 . 2689 245 401 90 . Entered New Map 43 | . . . . . . . . 43 . . Time Decay 3900 | . 237 110 150 169 . 2606 235 303 90 . Lost Part 208 | . . . . 60 . 83 10 55 . . Squads Dispatched 34 | . . . . . . 32 2 . . . Investigation 9 | . . . . . . 7 2 . . . Extermination 15 | . . . . . . 15 . . . . Reinforcement 6 | . . . . . . 6 . . . . Assault 2 | . . . . . . 2 . . . . Garrison 2 | . . . . . . 2 . . . . Intercept . | . . . . . . . . . . . Searches Triggered . | . . . . . . . . . . . Construction Impeded 2 | . . . . . . 2 . . . . Haulers Reinforced 1 | . . . . . . 1 . . . . Active Scanning Responses . | . . . . . . . . . . . Cargo Convoy Interrupts . | . . . . . . . . . . . Stealth | -11 -10 -10 -10 -9 -9 -6 -5 -5 -5 -5 --------- Run | Yrd Mat Min Sub Rec Scr Fac Fac Upp Upp War Distress Signals 5 | . 1 . . . . 3 . . . 1 Communications Jammed . | . . . . . . . . . . . Distress Signals . | . . . . . . . . . . . Times Spotted 196 | . 15 4 11 10 13 107 13 15 3 5 Peak Tracking Total 7 | . 3 2 3 7 7 5 5 5 2 5 Tactical Retreats 8 | . . . 1 1 . 5 1 . . . Traps | -11 -10 -10 -10 -9 -9 -6 -5 -5 -5 -5 ------- Run | Yrd Mat Min Sub Rec Scr Fac Fac Upp Upp War Traps Triggered 3 | . 1 . . . . 1 1 . . . Indirectly . | . . . . . . . . . . . Trap Hack Attempts . | . . . . . . . . . . . Triggered . | . . . . . . . . . . . Disarmed . | . . . . . . . . . . . Reprogrammed . | . . . . . . . . . . . Reused . | . . . . . . . . . . . Traps Extracted . | . . . . . . . . . . . Installed . | . . . . . . . . . . . Triggered . | . . . . . . . . . . . Machines | -11 -10 -10 -10 -9 -9 -6 -5 -5 -5 -5 ---------- Run | Yrd Mat Min Sub Rec Scr Fac Fac Upp Upp War Machines Disabled 23 | . . . . . . 19 1 . . 3 Max in Single Turn 2 | . . . . . . 2 1 . . 1 Garrison Access 2 | . . . . . . 2 . . . . Machines Repaired . | . . . . . . . . . . . Machines Dismantled . | . . . . . . . . . . . Machines Sabotaged . | . . . . . . . . . . . Overloaded Fab Kills . | . . . . . . . . . . . Hacking | -11 -10 -10 -10 -9 -9 -6 -5 -5 -5 -5 --------- Run | Yrd Mat Min Sub Rec Scr Fac Fac Upp Upp War Machines Accessed 36 | . 5 . . 7 6 13 3 1 . 1 Terminals 16 | . 5 . . 1 . 6 3 1 . . Fabricators 1 | . . . . . . 1 . . . . Repair Stations 2 | . . . . . . 2 . . . . Recycling Units 8 | . . . . 5 . 3 . . . . Scanalyzers 1 | . . . . . . 1 . . . . Garrison Access . | . . . . . . . . . . . Total Hacks 84 | . 9 . . 14 23 29 7 1 . 1 Successful 64 | . 5 . . 12 23 19 3 1 . 1 Failed 20 | . 4 . . 2 . 10 4 . . . Catastrophic 2 | . . . . . . . 2 . . . Database Lockouts . | . . . . . . . . . . . Manual 6 | . . . . . . 4 2 . . . Terminals 30 | . 9 . . 2 . 11 7 1 . . Fabricators 1 | . . . . . . 1 . . . . Repair Stations 6 | . . . . . . 6 . . . . Recycling Units 16 | . . . . 9 . 7 . . . . Scanalyzers 4 | . . . . . . 4 . . . . Garrison Access . | . . . . . . . . . . . Terminal Hacks 44 | . 5 . . 4 23 7 3 1 . 1 Record 27 | . 1 . . 2 18 3 2 1 . . Part Schematic 1 | . . . . . . . 1 . . . Robot Analysis 5 | . . . . . 5 . . . . . Open Door 1 | . . . . . . . . . . 1 Branch Access Points 1 | . . . . 1 . . . . . . Scanalyzer Index 1 | . . . . . . 1 . . . . Locate Traps 7 | . 4 . . . . 3 . . . . Release Object 1 | . . . . 1 . . . . . . Fabricator Hacks 1 | . . . . . . 1 . . . . Network Status 1 | . . . . . . 1 . . . . Repair Station Hacks 4 | . . . . . . 4 . . . . Scan Component 3 | . . . . . . 3 . . . . Repair 1 | . . . . . . 1 . . . . Recycling Unit Hacks 11 | . . . . 8 . 3 . . . . Report Inventory 5 | . . . . 5 . . . . . . Retrieve Matter 3 | . . . . . . 3 . . . . Retrieve Components 3 | . . . . 3 . . . . . . Scanalyzer 4 | . . . . . . 4 . . . . Insert Component 2 | . . . . . . 2 . . . . Analyze 2 | . . . . . . 2 . . . . Garrison Access Hacks . | . . . . . . . . . . . Unauthorized Hacks . | . . . . . . . . . . . Terminals . | . . . . . . . . . . . Fabricators . | . . . . . . . . . . . Repair Stations . | . . . . . . . . . . . Recycling Units . | . . . . . . . . . . . Scanalyzers . | . . . . . . . . . . . Garrison Access . | . . . . . . . . . . . Data Cores Recovered . | . . . . . . . . . . . Used . | . . . . . . . . . . . Hacking Detections 16 | . 4 . . 1 . 9 2 . . . Full Trace Events 8 | . . . . . . 6 2 . . . Feedback Events . | . . . . . . . . . . . Feedback Blocked . | . . . . . . . . . . . Robot Schematics Acquired . | . . . . . . . . . . . Robots Built . | . . . . . . . . . . . Authchips . | . . . . . . . . . . . Time . | . . . . . . . . . . . Total Robot Build Rating . | . . . . . . . . . . . Part Schematics Acquired 3 | . . . . . . 2 1 . . . Parts Built . | . . . . . . . . . . . Authchips . | . . . . . . . . . . . Time . | . . . . . . . . . . . Total Part Build Rating . | . . . . . . . . . . . Part Studies Acquired . | . . . . . . . . . . . Parts Repaired 1 | . . . . . . 1 . . . . Time 25 | . . . . . . 25 . . . . Parts Recycled . | . . . . . . . . . . . Recycled Matter . | . . . . . . . . . . . Retrieved Matter . | . . . . . . . . . . . Retrieved Components 9 | . . . . 9 . . . . . . Parts Scanalyzed 2 | . . . . . . 2 . . . . Part Schematics Acquired 2 | . . . . . . 2 . . . . Parts Damaged . | . . . . . . . . . . . Bothacking | -11 -10 -10 -10 -9 -9 -6 -5 -5 -5 -5 ------------ Run | Yrd Mat Min Sub Rec Scr Fac Fac Upp Upp War Used RIF Installer . | . . . . . . . . . . . Robots Hacked . | . . . . . . . . . . . Non-combat . | . . . . . . . . . . . Combat . | . . . . . . . . . . . Robot Hacks Applied . | . . . . . . . . . . . Relay Couplers Released 9 | . . . . . . 9 . . . . Machine Destruction 5 | . . . . . . 5 . . . . Programmers 4 | . . . . . . 4 . . . . Fabnet Peak Effective % . | . . . . . . . . . . . Robots Rewired 5 | . . . . 5 . . . . . . Allies Hacked . | . . . . . . . . . . . Hacks Repelled . | . . . . . . . . . . . Allies | -11 -10 -10 -10 -9 -9 -6 -5 -5 -5 -5 -------- Run | Yrd Mat Min Sub Rec Scr Fac Fac Upp Upp War Total Allies 6 | . . 1 . 5 . . . . . . Largest Group 5 | . . 1 . 5 5 . . . . . Highest-Rated Group 57 | . . 31 . 57 57 . . . . . Highest-Rated Ally 31 | . . 31 . 27 27 . . . . . Total Orders 1 | . . . . 1 . . . . . . DROP 1 | . . . . 1 . . . . . . Ally Attacks 18 | . . . . 11 7 . . . . . Total Damage 173 | . . . . 104 69 . . . . . Kills 4 | . . . . 2 2 . . . . . Allies Corrupted . | . . . . . . . . . . . Allies Melted 2 | . . . . . 2 . . . . . Intel | -11 -10 -10 -10 -9 -9 -6 -5 -5 -5 -5 ------- Run | Yrd Mat Min Sub Rec Scr Fac Fac Upp Upp War Active Infowar (turns) 13957 | . 1253 1133 573 182 . 6799 603 1173 1018 1223 Optics 4685 | . . . . . . 668 603 1173 1018 1223 Sensors 11209 | . . 613 400 . . 6364 603 1029 1018 1182 Terrain 49 | . 49 . . . . . . . . . Structural 1724 | . 1204 520 . . . . . . . . Traps 4277 | . . . . . . 4277 . . . . Seismic 355 | . . . 173 182 . . . . . . Jamming 8 | . . . . . . . . . . 8 Robot Analysis Total 5 | . . . . . 5 . . . . . Derelict Logs Recovered 4 | . . 1 . . . . . 2 1 . Drone Launches . | . . . . . . . . . . . Drone Recoveries . | . . . . . . . . . . . Exploration | -11 -10 -10 -10 -9 -9 -6 -5 -5 -5 -5 ------------- Run | Yrd Mat Min Sub Rec Scr Fac Fac Upp Upp War Turns Passed 19597 | 2 1253 1436 575 1322 2529 8462 603 1173 1018 1224 Spaces Moved 9029 | 1 722 718 312 516 1289 3507 277 587 504 596 Core 94 | . . 1 . 83 9 . . . . 1 Treads 1408 | . . . . . . 589 277 541 . 1 Legs 7515 | 1 722 717 312 421 1280 2918 . 46 504 594 Wheels 12 | . . . . 12 . . . . . . Hover . | . . . . . . . . . . . Flight . | . . . . . . . . . . . Fastest Speed 95 | 120 120 190 120 115 95 173 160 160 190 190 Average Speed 196 | 120 152 190 159 227 188 213 187 172 190 190 Slowest Speed 1050 | 120 190 400 190 450 1050 480 240 400 190 350 Overloaded Moves . | . . . . . . . . . . . Propulsion Burnouts . | . . . . . . . . . . . Robots Hopped . | . . . . . . . . . . . Potential Cave-ins . | . . . . . . . . . . . Cave-ins Triggered . | . . . . . . . . . . . Exploration Rate (%) 59 | 2 89 99 24 87 74 60 7 75 61 73 Regions Visited 10 Branch Regions 7 Pre-discovered Areas . | . . . . . . . . . . . Known Exits Taken 10 | 1 1 1 1 1 1 1 1 1 1 . Unknown Exits Taken . | . . . . . . . . . . . Scrap Searched 7 | . . . . . 5 . . 2 . . Spaces Dug 33 | . . . . . . . . 3 . 30 Terrain Destroyed 311 | . . . . 2 3 171 12 11 6 106 Melee . | . . . . . . . . . . . Projectile 82 | . . . . . 3 49 10 11 6 3 AOE 229 | . . . . 2 . 122 2 . . 103 Terrain Rammed . | . . . . . . . . . . . Walls Destroyed . | . . . . . . . . . . . Machines Disabled . | . . . . . . . . . . . Actions | -11 -10 -10 -10 -9 -9 -6 -5 -5 -5 -5 --------- Run | Yrd Mat Min Sub Rec Scr Fac Fac Upp Upp War Total 10225 | 1 825 758 348 619 1377 4110 315 667 549 656 Wait 390 | . 39 22 8 21 41 192 9 18 21 19 Move 9019 | . 721 717 311 515 1288 3506 276 586 503 596 Hop . | . . . . . . . . . . . Pick Up 104 | . 11 . . 8 12 57 4 2 5 5 Fast Attach 26 | . 3 . . 5 1 10 3 3 . 1 Attach 56 | . 1 . 2 4 2 31 2 4 . 10 Detach 20 | . . . . . 3 15 . . . 2 Swap 110 | 1 10 3 4 3 11 65 1 3 5 4 Drop 113 | . 11 1 1 2 10 71 2 3 6 6 Fire 335 | . 28 15 22 27 9 158 18 38 9 11 Melee . | . . . . . . . . . . . Ram 5 | . . . . 4 . . . . . 1 Kick 5 | . 1 . . . . 3 . . . 1 Crush 3 | . . . . . . 2 . 1 . . Escape Stasis . | . . . . . . . . . . . Rewire 39 | . . . . 30 . . . 9 . . Trap . | . . . . . . . . . . . Miscellaneous . | . . . . . . . . . . . Route ------- -11/Scrapyard -10/Materials (discovered 5 exits: *Mat x3 / *Min x2) -10/Mines (discovered 3 exits: *Mat x2 / *Sub) -10/Subcaves -9/Recycling (discovered 2 exits: *Fac / *Scr) -9/Scraptown (discovered 2 exits: *Fac x2) -6/Factory (discovered 4 exits: *Fac x2 / *Low x2) -5/Factory -5/Upper Caves -5/Upper Caves (discovered 2 exits: *Fac / *War) -5/Warlord (discovered 1 exit: *Pro) History --------- Turn | Location | Event 3 | -11/Scrapyard | Identified exit to Materials 3 | -11/Scrapyard | Discovered exit to Materials (range 0) 3 | -11/Scrapyard | Entered Materials 3 | -10/Materials | Evolved 1 slot: Utility x1 104 | -10/Materials | Identified exit to Materials 104 | -10/Materials | Discovered exit to Materials (range 10) 269 | -10/Materials | Identified exit to Mines 269 | -10/Materials | Discovered exit to Mines (range 8) 303 | -10/Materials | Build established: Hacker-Mutant 456 | -10/Materials | Discovered exit to Materials (range 7) 641 | -10/Materials | Discovered exit to Materials (range 3) 800 | -10/Materials | Discovered exit to Mines (range 8) 1256 | -10/Materials | Entered Mines 1650 | -10/Mines | Discovered exit to Materials (range 10) 1989 | -10/Mines | Received a Mining Laser from a helpful Derelict 1999 | -10/Mines | Discovered exit to Materials (range 5) 2018 | -10/Mines | Identified exit to Subcaves 2018 | -10/Mines | Discovered exit to Subcaves (range 6) 2075 | -10/Mines | Found a damaged Exp. Sensor Array with a note attached 2079 | -10/Mines | Found Prototype Device 2079 | -10/Mines | Identified Exp. Sensor Array 2692 | -10/Mines | Entered Subcaves 2693 | -10/Subcaves | Approached by a straggling Scientist 2887 | -10/Subcaves | Identified exit to Recycling 2887 | -10/Subcaves | Discovered exit to Recycling (range 15) 3132 | -10/Subcaves | Lost 3 parts (1n1u1w) 3267 | -10/Subcaves | Entered Recycling 3411 | -9/Recycling | Core integrity fell below 50% 3444 | -9/Recycling | Core integrity fell below 20% 3480 | -9/Recycling | Lost 6 parts (1p1n1u3w) 3892 | -9/Recycling | Identified exit to Factory 3892 | -9/Recycling | Discovered exit to Factory (range 16) 3995 | -9/Recycling | Build established: Commander-Mutant 4541 | -9/Recycling | Scanned before Scraplab entrance 4567 | -9/Recycling | Entered Scraplab 4582 | -9/Recycling | Identified exit to Scraptown 4582 | -9/Recycling | Discovered exit to Scraptown (range 2) 4589 | -9/Recycling | Entered Scraptown 4589 | -9/Scraptown | Accompanied by 5 allies 4974 | -9/Scraptown | Heard Great Nut preacher, LISTEN AND RECITE! 5390 | -9/Scraptown | Identified exit to Factory 5390 | -9/Scraptown | Discovered exit to Factory (range 7) 5700 | -9/Scraptown | Visited Spacefarers 5812 | -9/Scraptown | Visited Observation Area 5886 | -9/Scraptown | Visited Junk Repository 6013 | -9/Scraptown | Visited UFD Registry 6013 | -9/Scraptown | Registered with UFD as "Carbonrigger" 6087 | -9/Scraptown | Visited Modified Component R&D 6155 | -9/Scraptown | Visited A0-MCA Data Center 6164 | -9/Scraptown | Given a B- rating by A0-MCA 6170 | -9/Scraptown | Found A0-MCA's Component Scanner 6209 | -9/Scraptown | Visited DA-N13 Charitable Foundation 6233 | -9/Scraptown | Found DCF Scrap (28 items) 6404 | -9/Scraptown | Found Scrap Suit 6483 | -9/Scraptown | Discovered exit to Factory (range 5) 6563 | -9/Scraptown | Visited Cartography Club 6684 | -9/Scraptown | Visited Analyses Database 6732 | -9/Scraptown | Visited Research Penetration Think Tank 6811 | -9/Scraptown | Met Optimus 6811 | -9/Scraptown | Accepted into 0bPrime 6888 | -9/Scraptown | Visited Curators Association 6944 | -9/Scraptown | Civil war broke out across Scraptown 7111 | -9/Scraptown | Lost 25 allies 7118 | -9/Scraptown | Entered Factory 7118 | -6/Factory | Evolved 8 slots: Power x1, Propulsion x1, Utility x4, Weapon x2 7470 | -6/Factory | Identified exit to Lower Caves 7470 | -6/Factory | Discovered exit to Lower Caves (range 11) 7513 | -6/Factory | Identified exit to Factory 7513 | -6/Factory | Discovered exit to Factory (range 8) 7953 | -6/Factory | Build established: Scavenger-Skirmisher 9334 | -6/Factory | Build established: Hacker-Skirmisher 9630 | -6/Factory | Discovered exit to Lower Caves (range 15) 10342 | -6/Factory | Build established: Hacker-Tank 10934 | -6/Factory | Spotted B-75 Beast 11035 | -6/Factory | Destroyed B-75 Beast 11038 | -6/Factory | Lost 4 parts (2p2u) 11048 | -6/Factory | Core integrity fell below 50% 11080 | -6/Factory | Garrison activated, responded to threat 11284 | -6/Factory | Repaired Hyp. Gauss Rifle 11285 | -6/Factory | Garrison activated, responded to threat 11475 | -6/Factory | Build established: Hacker-Gunner 12309 | -6/Factory | Build established: Scavenger-Gunner 14208 | -6/Factory | Build established: Hacker-Gunner 14298 | -6/Factory | Garrison activated, responded to threat 14498 | -6/Factory | Core integrity fell below 20% 15199 | -6/Factory | Build established: Hacker-Skirmisher 15553 | -6/Factory | Discovered exit to Factory (range 8) 15580 | -6/Factory | Entered another Factory area 15580 | -5/Factory | Evolved 2 slots: Propulsion x1, Utility x1 16167 | -5/Factory | Identified exit to Upper Caves 16167 | -5/Factory | Discovered exit to Upper Caves (range 7) 16183 | -5/Factory | Entered Upper Caves 16585 | -5/Upper Caves | Learned 4 Factory zone layouts 16826 | -5/Upper Caves | Encountered a Warlord checkpoint 17014 | -5/Upper Caves | Attracted the attention of an 0b10 checkpoint 17068 | -5/Upper Caves | Learned Factory terminal intel 17171 | -5/Upper Caves | Identified exit to Upper Caves 17171 | -5/Upper Caves | Discovered exit to Upper Caves (range 13) 17253 | -5/Upper Caves | Lost 4 parts (2n1u1w) 17356 | -5/Upper Caves | Entered another Upper Caves area 17545 | -5/Upper Caves | Build established: Scavenger-Skirmisher 17581 | -5/Upper Caves | Identified exit to Factory 17581 | -5/Upper Caves | Discovered exit to Factory (range 15) 17590 | -5/Upper Caves | Learned Factory stockpile data 18086 | -5/Upper Caves | Spotted B-75 Beast 18118 | -5/Upper Caves | Destroyed B-75 Beast 18317 | -5/Upper Caves | Identified exit to Warlord 18317 | -5/Upper Caves | Discovered exit to Warlord (range 19) 18374 | -5/Upper Caves | Entered Warlord 18515 | -5/Warlord | Identified exit to Proximity Caves 18515 | -5/Warlord | Discovered exit to Proximity Caves (range 9) 18629 | -5/Warlord | System corruption cleaned by Quarantine Array 18877 | -5/Warlord | Found Prototype Special Weapon 18877 | -5/Warlord | Identified RU-N14's Throwing Claymores v3 19019 | -5/Warlord | Warlord's base attacked by MAIN.C 19052 | -5/Warlord | Found Prototype Launcher 19052 | -5/Warlord | Identified Vortex Catalyst Activator 19077 | -5/Warlord | Found Prototype Energy Gun 19078 | -5/Warlord | Identified Vortex Rail 19089 | -5/Warlord | Found Vortex Rail 19369 | -5/Warlord | Warlord forces counterattacked 19379 | -5/Warlord | Rebuked by Warlord 19544 | -5/Warlord | Attacked by Warlord forces 19545 | -5/Warlord | Spotted YN-X0K(K) 19545 | -5/Warlord | Spotted 89-187(K) 19583 | -5/Warlord | Core integrity fell below 50% 19593 | -5/Warlord | Core integrity fell below 20% 19598 | -5/Warlord | Destroyed by Warlord with Improved Arc Thrower Last Messages --------------- 19580_ Weight Redist. System destroyed. 19580_ Wave Gun destroyed. 19585_ Transmission Jammer destroyed. 19585_ HV Slug penetrates Reinforced Barrier. 19588_ Cold Fusion Reactor destroyed. 19588_ HV Slug penetrates 89-187(K). 19592_ Penetrated by HV Slug. 19592_ HV Slug penetrates 89-187(K). 19592_ HV Slug penetrates Machine. 19592_ HV Slug penetrates Reinforced Barrier. 19592_ YN-X0K(K) destroyed. 19592_ Critical hit (Destroy). 19592_ Carbon-fiber Leg destroyed. 19592_ Lgt. Fission Core destroyed. 19593_ Slammed into 89-187(K). 19594_ Acquired 62 matter. 19595_ Imp. Target Analyzer severed. 19597_ Enh. Optical Array severed. 19598_ God Mode shuts down. Map ----- +----------------------------------------------------+ | ?????????????????????????????????????????##??????? | | ???????????????????????????????????????### ####### | | ???????????????????????????????????????# # | | ???????????????????????????????????????? ^ # | | ????????????????????????????????????????? # | | ?????????????????????????????????????????# # | | ?????????????????????????????????????????# ^ # | | ?????????????????????????????????????????? # | | ???????????????????????????????????######??# | | ???????????????????????????????????# ??# | | ???????????????????????##??????????# ? | | ???????????????????????# ??????????# "" | | ??????????#########?#### ??????????# "" "" | | ??????????#"""""""#?# ###???????# " "" | | ??????????#" "### #???##### " | | ??????????#" "; #?## ## | | ??????????# a"; ##;;;;;##d ## | | ??????????# """"; " ;; ?? | | ??????????# ; ;; #?? | | ??????????#######;;; ;; #### | | ??????######## ;;;;###???# | | ??????# # ; W ; #????# | | ??????# # ; %GG ;;;;####### | | ??????# # #;; % GG% ;; ## | | ??????# # ## %K! % # ## | | ####### # ###" @ %%"" #?? ## | | # # # #?##############????? ## | | # + # #???????????????????????## | | ###+#+# # #????????????????????????# | | # # ##???????????????????????#####+ | | # # #?????????????????????????# ^ | | # # ##?????????????????????????# ^ | | ^ # # #???????????????????????#### | | # # #?###???????###?????????+ | | ####/### ### #####+### ######+#### | | #??# #?# ^^ | | #??# #?# ^ | | #??# #?# ^ | | ########## #?# | | ??# ## ### ########### ###+####+#########+# | | ??#|| + + ####?# ???????????????? | | ??#|| ## # """"" #????# ???????????????? | | ??#|| ## # """"" #????# ???????????????? | | ??########## ######? """""??????# ???????????????? | | ???????????# #??????? ??????# ???????????????? | | ???????????# #????????""""??????#????????????????? | | ???????????# #?????????""" ??????????????????????? | | ???????????# #??????????"" ??????????????????????? | | ???????#####/####??????? ????????????############ | | ???????# #?????????????????????#""""""""""" | +----------------------------------------------------+ Best States ------------- Heat Dissipation 73 Energy Generation 31 Energy Capacity 740 Matter Stores 300 Matter Capacity 300 Sight Range 22 Robot Scan Range 20 Terrain Scan Range 14 Terrain Scan Density 10 Jamming Range 12 Additional Mass Support 6 Armor Coverage 300 Resistance: KI 55 Resistance: TH 35 Resistance: EX 35 Resistance: EM 35 Resistance: I 35 Resistance: S 35 Resistance: P 35 Utility Shielding 33 Point Defense Rating 80 Evasion (%) 55 Targeting Accuracy 8 Target Analysis 6 Recoil Reduction 4 Particle Charging 20 Offensive Hacking 20 Item Schematics ----------------- Imp. Deuterium Engine | -6/Factory | Scanalyzed Proton Cannon | -6/Factory | Scanalyzed Imp. Heavy Siege Treads | -5/Factory | Hacked Robot Schematics ------------------ None Fabricated ------------ Nothing Repaired ---------- Hyp. Gauss Rifle | 7% | -6/Factory Studied --------- None Alien Tech Used ----------------- None Achievements -------------- A Powerful Ally? Civilization 2243 Close Call Fancy Inventory Into The Breach Link The Feds Plot Armor Sprinter Uncivil War You May Approach The Wall Challenges ------------ None Game ------ Seed HardlightShockboltLink Manual? 0 Play Time 03:41:39 Cumulative 81.5 hours Start 2025.11.28 @ 14:59:03 End 2025.12.05 @ 11:22:10 Sessions 21 Manual Loads 0 Difficulty Explorer Special Mode None Game No. 32 Rogue 0 Adventurer 0 Explorer 32 Win Type - Total 0 Types 0/0/0/0/0/0/0/0/0/0 Lore% 24 Gallery% 29 Achievement% 20 Wizard Run 0 Options --------- Layout 0 ASCII 1 Keyboard 0 Movement Vi Keybinds 1 Fullscreen 0 Font 20/SmallcapsGlow Map View 50x62 Zoom Use 0% Tactical HUD 1 Map Filters NONE Filters NONE Steam 0 RUN: 57faf6fe-d3c2-4199-b7d3-26d6cef7cccf